Cogmind - Beta 12 @@@ ROGUE MODE // 2023.03.10 @ 22:25:51 Player: FUMI Result: Destroyed by G-34 Mercenary with Small Laser Performance ------------- Evolutions (1) 500 Regions Visited (2) 400 Robots Destroyed (10) 50 Value Destroyed (316) 316 Prototype IDs (0) 0 Alien Tech Used (0) 0 Bonus (0) 0 TOTAL SCORE: 1266 Bonus ------- None Cogmind --------- Core Integrity 0/400 Matter 300/300 Energy 100/100 System Corruption 0% Temperature Cool (6) Movement Core (200) Ox3 Location -9/Materials Parts ------- > --- POWER (1) -------- (None) > --- PROPULSION (3) --- (None) > --- UTILITY (3) ------ Medium Storage Unit > --- WEAPON (2) ------- (None) > --- INVENTORY (10) --- Ion Engine Large Storage Unit Compact Matter Pod (46) Core Shielding EM Pulse Gun Assault Rifle Peak State ------------ > --- POWER ------------ Deuterium Engine > --- PROPULSION ------- Aluminum Leg Aluminum Leg Aluminum Leg > --- UTILITY ---------- Medium Storage Unit Seismic Detector Targeting Computer > --- WEAPON ----------- Small Laser Heavy Particle Cannon > --- INVENTORY -------- Ion Engine Light Ion Engine Aluminum Leg Large Storage Unit Compact Matter Pod Core Shielding EM Pulse Gun Medium Laser Assault Rifle Light Assault Rifle [Rating: 14] Favorites ----------- Power Light Ion Engine Engine Light Ion Engine Propulsion Aluminum Leg Leg Aluminum Leg Utility Targeting Computer Device Seismic Detector Storage Small Storage Unit Processor Targeting Computer Weapon Small Laser Energy Gun Small Laser Energy Cannon Heavy Particle Cannon Ballistic Gun Light Assault Rifle Build | -11 -10 -9 ------- Run | Jun Mat Mat Slots Evolved 2 | . . 2 Power . | . . . Propulsion 1 | . . 1 Utility 1 | . . 1 Weapon . | . . . Parts Attached 22 | 6 6 10 Power 4 | 1 2 1 Engine 4 | 1 2 1 Core . | . . . Reactor . | . . . Propulsion 4 | 2 . 2 Treads . | . . . Leg 4 | 2 . 2 Wheel . | . . . Hover . | . . . Flight . | . . . Utility 7 | 1 4 2 Device 2 | . . 2 Storage 4 | 1 3 . Processor 1 | . 1 . Hackware . | . . . Protection . | . . . Artifact . | . . . Weapon 7 | 2 . 5 Energy Gun 3 | 1 . 2 Energy Cannon 2 | . . 2 Ballistic Gun 2 | 1 . 1 Ballistic Cannon . | . . . Launcher . | . . . Special Weapon . | . . . Impact Weapon . | . . . Slashing Weapon . | . . . Piercing Weapon . | . . . Special Melee Weapon . | . . . Unidentified Prototypes . | . . . Parts Lost 12 | . . 12 Power 1 | . . 1 Propulsion 4 | . . 4 Utility 2 | . . 2 Weapon 5 | . . 5 Highest Loss Streak 10 | . . 10 To Critical Strikes . | . . . Average Slot Usage (%) 89 | . 99 77 Engine 12 | . 14 10 Leg 25 | . 28 22 Device 2 | . . 5 Storage 12 | . 14 11 Processor 12 | . 13 10 Energy Gun 12 | . 14 9 Energy Cannon 1 | . . 2 Ballistic Gun 10 | . 14 5 Naked Turns . | . . . Heaviest Build 28 | 10 15 28 Greatest Support 30 | 20 20 30 Greatest Overweight (x) 9 | 3 . 9 Average Overweight (x) . | . . . Largest Inventory Capacity 15 | 8 15 10 Average Capacity 8 | 7 8 10 Most Carried 10 | 2 10 10 Average Carried 6 | 1 6 8 Final Capacity 10 | 8 10 10 Final Carried 10 | 2 10 6 Class Distribution -------------------- 100% | Mutant Dominant Class ---------------- Mutant | -10/Materials Mutant | -9/Materials Resources | -11 -10 -9 ----------- Run | Jun Mat Mat Matter Collected 449 | 205 118 126 Remotely . | . . . Salvage Created 363 | . 210 153 Parts 16 | . 8 8 Haulers Intercepted . | . . . Recyclers Shooed 1 | . 1 . Parts Field Recycled . | . . . Retrieved Matter . | . . . Parts Self-Destructed . | . . . Prevented . | . . . Kills | -11 -10 -9 ------- Run | Jun Mat Mat Combat Hostiles Destroyed 10 | . 5 5 Guns 8 | . 5 3 Cannons 2 | . . 2 Classes Destroyed 3 | . 1 2 Swarmer 3 | . . 3 Grunt 5 | . 5 . Sentry 2 | . . 2 Best Kill Streak 4 | . 3 4 Combat Bots Only 4 | . 3 4 Max Kills in Single Turn 1 | . 1 1 Gunslinging . | . . . Exploded . | . . . Melee . | . . . Uniques/NPCs Destroyed . | . . . Combat | -11 -10 -9 -------- Run | Jun Mat Mat Damage Taken 1606 | . 319 1287 Core 485 | . 85 400 Absorbed by Shields . | . . . Core Remaining (%) 83 | 100 66 . Volleys Fired 57 | . 33 24 Largest 2 | . 2 2 Hottest 125 | . 60 125 Shots Fired 106 | . 66 40 Gun 97 | . 66 31 Cannon 9 | . . 9 Launcher . | . . . Special . | . . . Kinetic 43 | . 33 10 Thermal 63 | . 33 30 Explosive . | . . . Electromagnetic . | . . . Robot Hit Streak 23 | . 23 14 Robot Miss Streak 4 | . 4 1 Penetration Max . | . . . Secondary Targets 1 | . . 1 Max Gunslinging Chain 1 | . . 1 Shots Hit Robots 76 | . 45 31 Core Hits 24 | . 16 8 Critical Kills . | . . . Critical Parts Destroyed 1 | . 1 . Critical Strikes 2 | . 1 1 Burn 1 | . . 1 Destroy 1 | . 1 . Melee Attacks . | . . . Impact . | . . . Slashing . | . . . Piercing . | . . . Sneak Attacks . | . . . Combat Hostiles . | . . . Follow-up Attacks . | . . . Damage Inflicted 892 | . 442 450 Guns 659 | . 434 225 Cannons 225 | . . 225 Explosions . | . . . Melee . | . . . Ramming 8 | . 8 . Kinetic 224 | . 160 64 Thermal 660 | . 274 386 Explosive . | . . . Electromagnetic . | . . . Impact . | . . . Slashing . | . . . Piercing . | . . . Highest Corruption . | . . . Average Corruption . | . . . Corruption Purged . | . . . Corruption Blocked . | . . . Overload Shots . | . . . Overflow Damage 7 | . . 7 Projectiles 7 | . . 7 Explosions . | . . . Melee . | . . . Knockbacks . | . . . Impact . | . . . Kinetic . | . . . Secondary . | . . . Self-Inflicted Damage . | . . . Shots . | . . . Rammed . | . . . Targets Rammed 1 | . 1 . Kicked 1 | . 1 . Crushed . | . . . Highest Temperature 440 | . 148 440 Average Temperature 94 | . 64 132 Received Heat Transfer 801 | . 246 555 Siege Activations . | . . . Robots Corrupted . | . . . Combat Hostiles . | . . . Parts Fried . | . . . Impact Corruptions . | . . . Robots Melted . | . . . Combat Hostiles . | . . . Parts Melted 4 | . . 4 Heat Transferred 1430 | . 625 805 Parts Sabotaged . | . . . Parts Stolen . | . . . Parts Stripped . | . . . Power Chain Reactions . | . . . Missiles Intercepted . | . . . Alert | -11 -10 -9 ------- Run | Jun Mat Mat Peak Influence 162 | . 140 162 Initial 37 | . . 37 Average 61 | . 52 86 Maximum Alert Level . | . . . Low Security (%) 100 | 100 100 100 Level 1 . | . . . Level 2 . | . . . Level 3 . | . . . Level 4 . | . . . Level 5 . | . . . High Security . | . . . Max Security . | . . . Squads Dispatched 2 | . 1 1 Investigation . | . . . Extermination . | . . . Reinforcement 2 | . 1 1 Assault . | . . . Garrison . | . . . Intercept . | . . . Searches Triggered . | . . . Construction Impeded . | . . . Haulers Reinforced . | . . . Active Scanning Responses . | . . . Cargo Convoy Interrupts . | . . . Stealth | -11 -10 -9 --------- Run | Jun Mat Mat Distress Signals 6 | . 6 . Communications Jammed . | . . . Distress Signals . | . . . Times Spotted 25 | . 15 10 Peak Tracking Total 6 | . 6 5 Tactical Retreats 4 | . 4 . Traps | -11 -10 -9 ------- Run | Jun Mat Mat Traps Triggered . | . . . Indirectly . | . . . Trap Hack Attempts . | . . . Triggered . | . . . Disarmed . | . . . Reprogrammed . | . . . Reused . | . . . Traps Extracted . | . . . Installed . | . . . Triggered . | . . . Machines | -11 -10 -9 ---------- Run | Jun Mat Mat Machines Disabled . | . . . Max in Single Turn . | . . . Machines Repaired . | . . . Machines Sabotaged . | . . . Overloaded Fab Kills . | . . . Hacking | -11 -10 -9 --------- Run | Jun Mat Mat Machines Accessed 4 | . 4 . Terminals 4 | . 4 . Fabricators . | . . . Repair Stations . | . . . Recycling Units . | . . . Scanalyzers . | . . . Garrison Access . | . . . Total Hacks 9 | . 9 . Successful 5 | . 5 . Failed 4 | . 4 . Catastrophic . | . . . Database Lockouts . | . . . Manual 3 | . 3 . Terminals 9 | . 9 . Fabricators . | . . . Repair Stations . | . . . Recycling Units . | . . . Scanalyzers . | . . . Garrison Access . | . . . Terminal Hacks 5 | . 5 . Record 2 | . 2 . Emergency Access Points 1 | . 1 . Alert Level 1 | . 1 . Unreport Threat 1 | . 1 . Fabricator Hacks . | . . . Repair Station Hacks . | . . . Recycling Unit Hacks . | . . . Scanalyzer . | . . . Garrison Access Hacks . | . . . Unauthorized Hacks . | . . . Terminals . | . . . Fabricators . | . . . Repair Stations . | . . . Recycling Units . | . . . Scanalyzers . | . . . Garrison Access . | . . . Data Cores Recovered . | . . . Used . | . . . Hacking Detections 2 | . 2 . Full Trace Events . | . . . Feedback Events . | . . . Feedback Blocked . | . . . Robot Schematics Acquired . | . . . Robots Built . | . . . Authchips . | . . . Time . | . . . Total Robot Build Rating . | . . . Part Schematics Acquired . | . . . Parts Built . | . . . Authchips . | . . . Time . | . . . Total Part Build Rating . | . . . Parts Repaired . | . . . Time . | . . . Parts Recycled . | . . . Recycled Matter . | . . . Retrieved Matter . | . . . Retrieved Components . | . . . Parts Scanalyzed . | . . . Part Schematics Acquired . | . . . Parts Damaged . | . . . Bothacking | -11 -10 -9 ------------ Run | Jun Mat Mat Used RIF Installer . | . . . Robots Hacked . | . . . Non-combat . | . . . Combat . | . . . Robot Hacks Applied . | . . . Relay Couplers Released . | . . . Fabnet Peak Effective % . | . . . Robots Rewired . | . . . Allies Hacked . | . . . Hacks Repelled . | . . . Allies | -11 -10 -9 -------- Run | Jun Mat Mat Total Allies . | . . . Largest Group . | . . . Highest-Rated Group . | . . . Highest-Rated Ally . | . . . Total Orders . | . . . Ally Attacks . | . . . Total Damage . | . . . Kills . | . . . Allies Corrupted . | . . . Allies Melted . | . . . Intel | -11 -10 -9 ------- Run | Jun Mat Mat Robot Analysis Total . | . . . Derelict Logs Recovered . | . . . Drone Launches . | . . . Drone Recoveries . | . . . Exploration | -11 -10 -9 ------------- Run | Jun Mat Mat Turns Passed 729 | 63 390 276 Spaces Moved 384 | 43 210 131 Core 24 | 11 . 13 Treads . | . . . Legs 360 | 32 210 118 Wheels . | . . . Hover . | . . . Flight . | . . . Fastest Speed 50 | 50 120 120 Average Speed 130 | 123 120 149 Slowest Speed 500 | 200 120 500 Overloaded Moves . | . . . Propulsion Burnouts . | . . . Robots Hopped . | . . . Cave-ins Triggered . | . . . Exploration Rate (%) 19 | 3 35 21 Regions Visited 2 Branch Regions . Pre-discovered Areas . | . . . Known Exits Taken . | . . . Unknown Exits Taken 2 | 1 1 . Scrap Searched . | . . . Spaces Dug . | . . . Terrain Destroyed . | . . . Melee . | . . . Projectile . | . . . AOE . | . . . Terrain Rammed . | . . . Walls Destroyed . | . . . Machines Disabled . | . . . Actions | -11 -10 -9 --------- Run | Jun Mat Mat Total 516 | 50 291 175 Wait 25 | . 23 2 Move 382 | 42 209 131 Hop . | . . . Pick Up 18 | 2 13 3 Fast Attach 8 | 6 1 1 Attach 8 | . 1 7 Detach 2 | . . 2 Swap 6 | . 4 2 Drop 9 | . 6 3 Fire 57 | . 33 24 Melee . | . . . Ram . | . . . Kick 1 | . 1 . Crush . | . . . Escape Stasis . | . . . Rewire . | . . . Trap . | . . . Miscellaneous . | . . . Route ------- -11/Junkyard -10/Materials (discovered 2 exits: [*Mat x2]) -9/Materials History --------- Turn | Location | Event 20 | -11/Junkyard | Discovered new exit (range 15) 64 | -11/Junkyard | Entered Materials 167 | -10/Materials | Discovered new exit (range 16) 336 | -10/Materials | Build established: Mutant 389 | -10/Materials | Discovered new exit (range 9) 454 | -10/Materials | Entered another Materials area 454 | -9/Materials | Evolved 2 slots: Propulsion x1, Utility x1 677 | -9/Materials | Core integrity fell below 50% 723 | -9/Materials | Core integrity fell below 20% 730 | -9/Materials | Destroyed by G-34 Mercenary with Small Laser Last Messages --------------- 00663_ Critical hit (Burn: +37). 00664_ G-34 Mercenary suffers critical hit (Burn). 00672_ Acquired 60 matter. 00674_ R-06 Scavenger collects Lgt. Assault Rifle. 00676_ Med. Laser destroyed. 00678_ Acquired Beam Rifle. 00678_ G-34 Mercenary overheating. 00679_ R-06 Scavenger collects Heat Sink. 00679_ G-34 Mercenary overheating. 00682_ Acquired 12 matter. 00684_ Aluminum Leg destroyed. 00688_ Hvy. Particle Cannon destroyed. 00711_ Critical hit (Burn: +37). 00714_ U-05 Engineer builds a Door. 00715_ Targeting Computer destroyed. 00717_ Beam Rifle destroyed. 00719_ Deuterium Engine destroyed. 00725_ K-01 Serf collects debris. 00726_ Critical hit (Burn: +37). 00728_ K-01 Serf collects debris. Map ----- +----------------------------------------------------+ | | | | | | | | | | | ?????????????????????????????????????????????????? | | ?????????????????????????????????????????????????? | | ?????????????????????????????????????????????????? | | ?????????????????????????????????????????????????? | | ?????????????????????????????????????????????????? | | ?????????????????????????????????????????????????? | | ?????????????????????????????????????????????????? | | ???????????##########????????????????????????????? | | ?????????#?# #????????????????????????????? | | ?????????? # #????????????????????????????? | | ??? ?????? # = #????????????????????????????? | | ???? ??????+ #????????????????????????????? | | ????? ?????#% #????????????????????????????? | | ?????? ????# #????????????????????????????? | | ??????# ???# #????????????????????????????? | | ??????# ??# #????????????????????????????? | | ??""" # ?#%*= #??#######???????????????????? | | ??""" " ###t########## #???????????????????? | | ??????# k g #???????????????????? | | ??????# Y #???????????????????? | | ??????# g @ #???????????????????? | | ??????# ###+######+### #???????????????????? | | ??????# ? ??# ## ##???????????????????? | | ??????# ?# ## "" ## #????????????????????? | | ??????# ??# " ## T" ## #????????????????????? | | ??????#???# "" ## "" ## ###############??????? | | ??????????# "" ## ## #??????? | | ??????????# """ ## ## #??????? | | ??????????# "" ## ## ######## | | ??????????# "?" ##|| ######### #### #!!** ]# | | ??????????# "?? ##|| # # #??# #! !*]]# | | ??????????# ???? ######## " # #??# # [ # | | ??????????# ???? #??????# "" # #??# # # | | ??????????#??????#??????# "" # #??# # | | ????????????????????????# """ + #??# # | | ????????????????????????# "" # #??# # | | ????????????????????????# """ #####??##########+# | | ????????????????????????# """ #????????????# | | ??????????????????????? + """ #????????????# | | ?????????????????????? # " #????????????# | | ?????????????????????? ?# #????????????# | | ????????????????????????#? #????????????# | | ????????????????????????? ?? #????????????###### | | ????????????????????????????###??????????????????? | | ?????????????????????????????????????????????????? | +----------------------------------------------------+ Best States ------------- Heat Dissipation 28 Energy Generation 14 Energy Capacity 275 Matter Stores 300 Matter Capacity 300 Sight Range 16 Terrain Scan Density 10 Evasion (%) 55 Targeting Accuracy 5 Item Schematics ----------------- None Robot Schematics ------------------ None Fabricated ------------ Nothing Alien Tech Used ----------------- None Achievements -------------- None Challenges ------------ None Game ------ Seed MagneticDeuteriumPlating Manual? 0 Play Time 00:14:00 Cumulative 33.6 hours Start 2023.03.09 @ 23:57:56 End 2023.03.10 @ 22:25:51 Sessions 3 Manual Loads 0 Difficulty Rogue Special Mode None Game No. 30 Rogue 14 Adventurer 0 Explorer 16 Win Type - Total 0 Types 0/0/0/0/0/0/0/0/0 Lore% 9 Gallery% 27 Achievement% 26 Wizard Run 0 Options --------- ASCII 0 Keyboard 0 Movement Mouse Keybinds 0 Fullscreen 1 Font 20/X11 Map View 66x50 Tactical HUD 1 Map Filters NONE Filters NONE Steam 1 RUN: 641e20aa-c99a-4919-9bb8-5158fe9e1fc8